bitfinex/quotes_BTCUSD_20251201
["timestamp","ask_amount","ask_price","bid_price","bid_amount"]
[1764550053284,0.44739,87523.0,87497.0,0.01142896]
[1764550053479,0.44739,87523.0,87521.0,0.22851402]
[1764550053480,0.35239533,87523.0,87521.0,0.22851402]
[1764550053677,0.35239533,87523.0,87522.0,0.12418515]
[1764550054012,0.35039533,87523.0,87522.0,0.22864397]
[1764550054395,0.35039533,87523.0,87522.0,0.32070397]
[1764550055227,0.3474082,87523.0,87522.0,0.64370397]
[1764550055404,0.22836002,87582.0,87522.0,0.64370397]
[1764550055405,0.09739,87581.0,87563.0,0.01142034]
[1764550055604,0.09739,87581.0,87563.0,0.00011887]
[1764550055605,0.01141917,87572.0,87563.0,0.00011887]
[1764550055975,0.03361203,87564.0,87563.0,0.00011887]
[1764550056151,0.42361203,87564.0,87563.0,0.00011887]
[1764550056375,0.40089203,87564.0,87563.0,0.00011887]
[1764550056561,0.39,87564.0,87563.0,0.00011887]
[1764550056922,0.39,87564.0,87563.0,0.22852584]
[1764550057107,0.395,87564.0,87563.0,0.22852584]
[1764550057318,0.395,87564.0,87563.0,0.00011887]
[1764550057519,0.39,87564.0,87563.0,0.00011887]
[1764550058050,0.39,87564.0,87563.0,0.23972276]
[1764550058254,0.39,87564.0,87563.0,0.33178276]
[1764550058435,0.39,87564.0,87563.0,0.34267113]
[1764550059226,0.39,87564.0,87563.0,1.20763413]
[1764550059428,0.391,87564.0,87563.0,1.20763413]
[1764550059663,0.01141552,87600.0,87593.0,0.01141643]
[1764550059888,0.01141578,87598.0,87593.0,0.01141643]
[1764550060113,0.36,87598.0,87595.0,0.23973779]
[1764550060303,0.36,87598.0,87595.0,0.01141617]
[1764550060516,0.36,87598.0,87572.0,0.01119692]
[1764550060517,0.011418,87581.0,87572.0,0.01119692]
[1764550060722,0.41,87581.0,87575.0,0.10120376]
[1764550060862,0.41,87581.0,87572.0,0.22838191]
[1764550060863,0.23979689,87575.0,87572.0,0.00011887]
[1764550061051,0.22838089,87573.0,87572.0,0.00011887]
[1764550061253,0.36,87573.0,87572.0,0.00011887]
[1764550061721,0.37089203,87573.0,87572.0,0.00011887]
[1764550062526,0.36,87573.0,87572.0,0.00111887]
[1764550063191,0.46828203,87573.0,87572.0,0.00111887]
[1764550063612,0.37089203,87573.0,87572.0,0.00111887]
[1764550063752,0.37489203,87573.0,87572.0,0.00011887]
[1764550064155,0.46828203,87573.0,87572.0,0.00011887]
[1764550064356,0.47228203,87573.0,87572.0,0.00011887]
[1764550064676,0.46828203,87573.0,87572.0,0.00011887]
[1764550065772,0.46928203,87573.0,87572.0,0.00011887]
[1764550065971,0.365,87573.0,87572.0,0.00011887]
[1764550066165,0.41112,87573.0,87572.0,0.00011887]
[1764550066517,0.51488203,87573.0,87572.0,0.00011887]
[1764550066714,0.51988203,87573.0,87572.0,0.00011887]
[1764550066891,0.41801203,87573.0,87572.0,0.00011887]
[1764550067211,0.36,87573.0,87572.0,0.00011887]
[1764550067416,0.363,87573.0,87572.0,0.00011887]
[1764550067621,0.361,87573.0,87572.0,0.00011887]
[1764550067878,0.361,87573.0,87572.0,0.16065887]
[1764550068020,0.364,87573.0,87572.0,0.16065887]
[1764550068213,0.364,87573.0,87572.0,0.17154724]
[1764550068443,0.364,87573.0,87572.0,0.16801887]
[1764550068970,0.364,87573.0,87572.0,0.17890724]
[1764550069181,0.36,87573.0,87572.0,0.17990724]
[1764550069534,0.362,87573.0,87572.0,0.17990724]
[1764550069732,0.36,87573.0,87572.0,0.17990724]
[1764550069933,0.36,87573.0,87572.0,0.17254724]
[1764550070142,0.364,87573.0,87572.0,0.16901887]
[1764550070342,0.364,87573.0,87572.0,0.17890724]
[1764550070539,0.364,87573.0,87572.0,0.16065887]
[1764550070858,0.36,87573.0,87572.0,0.17890724]
[1764550071274,0.365,87573.0,87572.0,0.14146724]
[1764550071654,0.365,87573.0,87572.0,0.13057887]
[1764550071859,0.365,87573.0,87572.0,3.25606323]
[1764550072062,0.365,87573.0,87572.0,3.05332423]
[1764550072260,0.36,87573.0,87572.0,0.60399023]
[1764550072488,0.36,87573.0,87572.0,1.80473586]
[1764550072754,0.36,87573.0,87572.0,1.05802623]
[1764550072956,0.36,87573.0,87572.0,0.54446724]
[1764550073179,0.36,87573.0,87572.0,0.52321887]
[1764550073355,0.36,87573.0,87572.0,0.12321887]
[1764550073554,0.364,87573.0,87572.0,0.13057887]
[1764550073742,0.36,87573.0,87572.0,0.12321887]
[1764550073947,0.36,87573.0,87572.0,0.13057887]
[1764550074182,0.365,87573.0,87572.0,0.13057887]
[1764550074396,0.36,87573.0,87572.0,0.12321887]
[1764550074544,0.36,87573.0,87572.0,0.13057887]
[1764550075601,0.36,87573.0,87572.0,0.12321887]
[1764550075793,0.36,87573.0,87572.0,0.14446724]
[1764550076009,0.36,87573.0,87572.0,1.63906022]
[1764550076328,0.36,87573.0,87572.0,4.44453523]
[1764550076532,0.01141265,87622.0,87572.0,4.44453523]
[1764550076533,0.01141239,87624.0,87611.0,0.01141409]
[1764550076707,0.23966412,87623.0,87618.0,0.01141317]
[1764550076907,0.23966412,87623.0,87621.0,0.22825417]
[1764550076908,0.39,87623.0,87621.0,0.22825417]
[1764550077088,0.39,87623.0,87621.0,0.23945115]
[1764550077720,0.3903959,87623.0,87621.0,0.23945115]
[1764550077920,0.3903959,87623.0,87622.0,0.01088837]
[1764550078427,0.3903959,87623.0,87621.0,0.24045115]
[1764550078632,0.3903959,87623.0,87621.0,0.01219692]
[1764550078781,0.3903959,87623.0,87622.0,0.00736]
[1764550078986,0.3913959,87623.0,87622.0,0.00736]
[1764550079177,0.3913959,87623.0,87621.0,0.24045201]
[1764550079489,0.3903959,87623.0,87622.0,0.00736]
[1764550079928,0.3903959,87623.0,87622.0,0.00836]
[1764550080529,0.68360647,87623.0,87622.0,0.001]
[1764550080718,0.77579647,87623.0,87622.0,0.001]
[1764550081052,0.22832092,87596.0,87595.0,0.02241554]
[1764550081248,0.39,87596.0,87595.0,0.02241554]
[1764550081449,0.01141748,87585.0,87576.0,0.02241554]
[1764550081647,0.011418,87581.0,87576.0,0.02241554]
[1764550081868,0.22836888,87578.0,87576.0,0.02241554]
[1764550082032,0.01142047,87562.0,87559.0,0.02241554]
[1764550082233,0.4,87562.0,87560.0,0.10120376]
[1764550082494,0.4,87562.0,87559.0,0.02253441]
[1764550082495,0.63983094,87562.0,87559.0,0.02253441]
[1764550082885,0.2284148,87560.0,87559.0,0.00011887]
[1764550083065,0.7006048,87560.0,87559.0,0.00011887]
[1764550083386,0.7006048,87560.0,87547.0,0.00024976]
[1764550083387,0.2284461,87548.0,87547.0,0.00024976]
[1764550083553,0.6379761,87548.0,87547.0,0.00036725]
[1764550083752,0.74105813,87548.0,87547.0,0.00036725]
[1764550084065,0.50172,87548.0,87547.0,0.00036725]
[1764550084252,0.40953,87548.0,87547.0,0.00036725]
[1764550084459,0.74105813,87548.0,87547.0,0.00036725]
[1764550084652,0.74105813,87548.0,87532.0,0.02241554]
[1764550084856,0.01142491,87528.0,87523.0,0.02241554]
[1764550085056,0.35,87528.0,87524.0,0.10120376]
[1764550085318,0.35,87528.0,87525.0,0.23993144]
[1764550085477,0.35,87528.0,87525.0,0.26278205]
[1764550085679,0.35,87528.0,87525.0,0.23993144]
[1764550086188,0.35,87528.0,87527.0,0.22850091]
[1764550086709,0.35,87528.0,87526.0,0.10120376]
[1764550087077,0.35,87528.0,87527.0,0.22850091]
[1764550087260,0.35,87528.0,87526.0,0.11209213]
[1764550087261,0.35,87528.0,87526.0,0.32970501]
[1764550087472,0.35,87528.0,87527.0,0.22850091]
[1764550087678,0.35,87528.0,87526.0,0.10220376]
[1764550087901,0.35,87528.0,87526.0,0.01618056]
[1764550088304,0.35,87528.0,87527.0,0.22850091]
[1764550088632,0.35,87528.0,87526.0,0.00646816]
[1764550088633,0.352,87528.0,87526.0,0.21041362]
[1764550088830,0.35,87528.0,87527.0,0.02285009]
[1764550089035,0.35,87528.0,87526.0,0.21041362]
[1764550089234,0.35,87528.0,87527.0,0.001]
[1764550089871,0.35,87528.0,87526.0,0.002]
[1764550090052,0.35,87528.0,87527.0,0.001]
[1764550090464,0.35,87528.0,87527.0,0.00162455]
[1764550090465,0.6706883,87528.0,87527.0,0.00162455]
[1764550090612,0.6706883,87528.0,87527.0,0.00062455]
[1764550090817,0.6706883,87528.0,87527.0,0.00162455]
[1764550091014,0.7356483,87528.0,87527.0,4.55e-06]
[1764550091240,0.7356483,87528.0,87510.0,4.274e-05]
[1764550091241,0.22854269,87511.0,87510.0,4.274e-05]
[1764550091436,0.4,87511.0,87510.0,4.274e-05]
[1764550091650,0.56804203,87511.0,87510.0,0.00057378]
[1764550091852,0.39769722,87511.0,87510.0,0.00057378]
[1764550092392,0.39781574,87511.0,87510.0,0.00057378]
[1764550092732,0.39781574,87511.0,87510.0,0.03964831]
[1764550092932,0.39270574,87511.0,87510.0,0.11305967]
[1764550093153,0.38970574,87511.0,87510.0,0.00057378]
[1764550093793,0.38970574,87511.0,87510.0,1.92835578]
[1764550094011,0.38970574,87511.0,87510.0,0.01146215]
[1764550094267,0.38970574,87511.0,87510.0,0.18417415]
[1764550094440,0.38970574,87511.0,87510.0,0.00057378]
[1764550095467,0.39170574,87511.0,87510.0,0.00057378]
[1764550095827,0.38970574,87511.0,87510.0,0.00057378]
[1764550096272,0.39370574,87511.0,87510.0,0.00057378]
[1764550096679,0.38970574,87511.0,87510.0,0.00057378]
[1764550096880,0.38970574,87511.0,87510.0,0.00257378]
[1764550097058,0.38970574,87511.0,87510.0,0.02642831]
[1764550097257,0.38970574,87511.0,87510.0,0.00157378]
[1764550097525,0.34011852,87511.0,87510.0,2.43384968]
[1764550097762,0.04953,87570.0,87545.0,0.01142269]
[1764550097763,0.22842784,87555.0,87545.0,0.01142269]
[1764550097961,0.41011889,87555.0,87547.0,0.22844871]
[1764550098210,0.41011889,87555.0,87552.0,0.23985745]
[1764550098399,0.41011889,87555.0,87549.0,0.01142217]
[1764550098585,0.41011889,87555.0,87552.0,0.23985745]
[1764550098773,0.41011889,87555.0,87546.0,0.2398732]
[1764550099012,0.41011889,87555.0,87552.0,0.23985678]
[1764550099320,0.42154028,87555.0,87551.0,0.01142191]
[1764550099516,0.42354028,87555.0,87551.0,0.01142191]
[1764550099717,0.01142152,87554.0,87548.0,0.11262606]
[1764550099916,0.01142178,87552.0,87549.0,0.01142217]
[1764550100154,0.34,87552.0,87548.0,0.11262606]
[1764550100274,0.34,87552.0,87549.0,0.2398647]
[1764550100473,0.34,87552.0,87549.0,0.01142217]
[1764550100675,0.34,87552.0,87549.0,0.23986482]
[1764550101229,0.34,87552.0,87546.0,0.01142256]
[1764550101230,0.05927191,87551.0,87546.0,0.01142256]
[1764550101414,0.39927191,87551.0,87549.0,0.10120376]
[1764550101589,0.38785,87551.0,87549.0,0.10120376]
[1764550101783,0.38785,87551.0,87521.0,0.11262958]
[1764550101784,0.01142491,87528.0,87521.0,0.11262958]
[1764550102006,0.01142504,87527.0,87521.0,0.10120376]
[1764550102207,0.01142504,87527.0,87521.0,0.11262958]
[1764550102208,0.35142504,87527.0,87521.0,0.11262958]
[1764550102405,0.35142504,87527.0,87524.0,0.01142543]
[1764550102628,0.35142504,87527.0,87523.0,0.01142556]
[1764550102833,0.34,87527.0,87524.0,0.01142543]
[1764550103038,0.23993144,87525.0,87521.0,0.10120376]
[1764550103242,0.23993764,87523.0,87519.0,0.00024988]
[1764550103436,0.63993764,87523.0,87519.0,0.00024988]
[1764550103773,0.4,87523.0,87519.0,0.00024988]
[1764550103976,0.4,87523.0,87520.0,0.23994514]
[1764550104427,0.4,87523.0,87522.0,0.22851397]
[1764550104791,0.4,87523.0,87522.0,0.23940234]
[1764550105017,0.4,87523.0,87522.0,0.23587397]
[1764550105379,0.4,87523.0,87522.0,0.24676234]
[1764550105571,0.402,87523.0,87522.0,0.24676234]
[1764550105766,0.4,87523.0,87522.0,0.24776234]
[1764550106176,0.4,87523.0,87522.0,0.003]
[1764550106592,0.4,87523.0,87522.0,0.01388837]
[1764550107267,0.4,87523.0,87522.0,0.403]
[1764550107616,0.4,87523.0,87522.0,0.003]
[1764550107814,0.4,87523.0,87522.0,0.23151397]
[1764550108203,0.4,87523.0,87522.0,0.23051397]
[1764550108601,0.4,87523.0,87522.0,0.24240234]
[1764550108902,0.4,87523.0,87522.0,0.24040234]
[1764550109103,0.4,87523.0,87522.0,0.23940234]
[1764550109369,0.4,87523.0,87522.0,1.21367034]
[1764550109566,0.4,87523.0,87522.0,1.21267034]
[1764550109818,0.4,87523.0,87522.0,1.68766334]
[1764550110038,0.4,87523.0,87522.0,5.61603696]
[1764550110255,0.4,87523.0,87522.0,3.12480496]
[1764550110474,0.4,87523.0,87522.0,1.79794233]
[1764550110682,0.407,87523.0,87522.0,1.75570333]
[1764550110891,0.407,87523.0,87522.0,1.92769333]
[1764550111103,0.407,87523.0,87522.0,1.83807733]
[1764550111319,0.408,87523.0,87522.0,3.79226833]
[1764550111527,0.408,87523.0,87522.0,3.78917233]
[1764550111737,0.407,87523.0,87522.0,3.64835833]
[1764550111978,0.4,87523.0,87522.0,3.87937533]
[1764550112166,0.403,87523.0,87522.0,0.78857397]
[1764550112386,0.4,87523.0,87522.0,0.79946234]
[1764550112820,0.405,87523.0,87522.0,0.64676234]
[1764550113045,0.00736,87568.0,87559.0,0.01142087]
[1764550113275,0.18676816,87583.0,87570.0,0.01141943]
[1764550113276,0.011418,87581.0,87570.0,0.01141943]
[1764550113507,0.04725,87585.0,87579.0,0.01141826]
[1764550113745,0.44736896,87585.0,87581.0,0.011418]
[1764550113950,0.44736896,87585.0,87579.0,0.01141826]
[1764550113951,0.40011896,87585.0,87579.0,0.01141826]
[1764550114152,0.40011896,87585.0,87582.0,0.10120376]
[1764550114605,0.01141839,87578.0,87566.0,0.22839915]
[1764550114816,0.01142034,87563.0,87550.0,0.71726384]
[1764550115045,0.01142139,87555.0,87550.0,0.71726384]
[1764550115246,0.01142139,87555.0,87532.0,0.10120376]
[1764550115247,0.01142295,87543.0,87532.0,0.10120376]
[1764550115517,0.01142308,87542.0,87537.0,0.22847247]
[1764550115716,0.011424,87535.0,87521.0,0.01142582]
[1764550115915,0.23990677,87534.0,87531.0,0.10120376]
[1764550116118,0.22848786,87532.0,87531.0,0.10120376]
[1764550116262,0.62848786,87532.0,87531.0,0.10120376]
[1764550116466,0.62848786,87532.0,87516.0,0.10120376]
[1764550116467,0.01142465,87530.0,87516.0,0.10120376]
[1764550116662,0.37142465,87530.0,87521.0,0.02285165]
[1764550116908,0.36,87530.0,87525.0,0.2285053]
[1764550117110,0.36,87530.0,87510.0,0.24001403]
[1764550117111,0.01142569,87522.0,87510.0,0.24001403]
[1764550117283,0.36,87522.0,87521.0,0.10120376]
[1764550119334,0.36,87522.0,87521.0,0.10320376]
[1764550119538,0.36,87522.0,87521.0,0.13494378]
[1764550119715,0.36,87522.0,87521.0,2.32913978]
[1764550119885,0.36,87522.0,87521.0,2.10745312]
[1764550120087,0.36,87522.0,87521.0,2.34984912]
[1764550120300,0.36,87522.0,87521.0,0.78201375]
[1764550120504,0.36,87522.0,87521.0,0.77285775]
[1764550120704,0.36,87522.0,87521.0,0.91612412]
[1764550121016,0.36,87522.0,87521.0,0.10120376]
[1764550121417,0.365,87522.0,87521.0,0.11209213]
[1764550121620,0.365,87522.0,87521.0,0.50120376]
[1764550121838,0.36,87522.0,87521.0,0.50120376]
[1764550122063,0.362,87522.0,87521.0,0.10120376]
[1764550122441,0.36,87522.0,87521.0,0.10120376]
[1764550122683,0.365,87522.0,87521.0,0.10120376]
[1764550122866,0.365,87522.0,87519.0,0.25569018]
[1764550122867,0.22851658,87521.0,87519.0,0.01574285]
[1764550123195,0.22851919,87520.0,87519.0,0.01574285]
[1764550123327,0.59851919,87520.0,87519.0,0.01574285]
[1764550124416,0.37,87520.0,87519.0,0.01574285]
[1764550124760,0.37,87520.0,87519.0,0.11994661]
[1764550125658,0.37,87520.0,87519.0,0.1396364]
[1764550125810,0.37,87520.0,87519.0,0.11694661]
[1764550126002,0.37,87520.0,87519.0,0.12094661]
[1764550126190,0.37,87520.0,87519.0,0.11694661]
[1764550126611,0.37,87520.0,87519.0,0.12294661]
[1764550127013,0.37,87520.0,87519.0,0.12194661]
[1764550127394,0.371,87520.0,87519.0,0.12194661]
[1764550127853,0.371,87520.0,87519.0,0.11694661]
[1764550128004,0.372,87520.0,87519.0,0.11694661]
[1764550128206,0.372,87520.0,87519.0,0.12783498]
[1764550129046,0.372,87520.0,87519.0,0.11694661]
[1764550129241,0.37,87520.0,87519.0,0.11694661]
[1764550129615,0.371,87520.0,87519.0,0.34546841]
[1764550129813,0.371,87520.0,87519.0,0.35635678]
[1764550130015,0.371,87520.0,87519.0,0.34546841]
[1764550130016,0.372,87520.0,87519.0,0.34546841]
[1764550130195,0.372,87520.0,87519.0,0.35560167]
[1764550130404,0.371,87520.0,87519.0,0.35560167]
[1764550130831,0.37,87520.0,87519.0,0.12707987]
[1764550131360,0.371,87520.0,87519.0,0.35560167]
[1764550131712,0.371,87520.0,87519.0,0.01498774]
[1764550133986,0.37,87520.0,87519.0,0.02587611]
[1764550134385,0.37,87520.0,87519.0,0.01498774]
[1764550135523,0.373,87520.0,87519.0,0.01498774]
[1764550135717,0.373,87520.0,87519.0,0.1161915]
[1764550136729,0.374,87520.0,87519.0,0.01498774]
[1764550137339,0.374,87520.0,87510.0,4.274e-05]
[1764550137340,0.22854269,87511.0,87510.0,4.274e-05]
[1764550137559,0.67408269,87511.0,87510.0,4.274e-05]
[1764550137753,0.77074269,87511.0,87510.0,4.274e-05]
[1764550137952,0.38,87511.0,87510.0,4.274e-05]
[1764550138166,0.60854269,87511.0,87510.0,4.274e-05]
[1764550138309,0.5422,87511.0,87510.0,4.274e-05]
[1764550138516,0.44554,87511.0,87510.0,4.274e-05]
[1764550138786,0.38,87511.0,87510.0,0.00704274]
[1764550140161,0.38,87511.0,87510.0,0.00804274]
[1764550141866,0.09666,87554.0,87511.0,0.33781]
[1764550142211,0.09666,87554.0,87510.0,0.01540274]
[1764550142212,0.37011887,87549.0,87540.0,0.01142334]
[1764550142330,0.22844871,87547.0,87533.0,0.10120376]
[1764550142531,0.41,87547.0,87545.0,0.22845373]
[1764550142781,0.41,87547.0,87543.0,0.22845915]
[1764550142985,0.41,87547.0,87544.0,0.22845654]
[1764550143203,0.41,87547.0,87544.0,0.23987936]
[1764550143403,0.41,87547.0,87542.0,0.01498774]
[1764550143609,0.41,87547.0,87545.0,0.22845308]
[1764550143972,0.41,87547.0,87544.0,0.01142282]
[1764550144174,0.41,87547.0,87542.0,0.01498774]
[1764550144375,0.01142256,87546.0,87542.0,0.01998774]
[1764550144588,0.41,87546.0,87542.0,0.24844883]
[1764550144794,0.41,87546.0,87516.0,0.01498774]
[1764550144795,0.23989378,87539.0,87516.0,0.01498774]
[1764550144992,0.23989378,87539.0,87533.0,0.10120376]
[1764550144993,0.01142413,87534.0,87533.0,0.10120376]
[1764550145191,0.35,87534.0,87533.0,0.10120376]
[1764550145390,0.35,87534.0,87533.0,0.32968901]
[1764550146380,0.22856274,87549.0,87548.0,0.2284461]
[1764550146381,0.00011887,87549.0,87548.0,0.2284461]
[1764550146620,0.35011887,87549.0,87548.0,0.24343384]
[1764550147994,0.35011887,87549.0,87548.0,0.24743384]
[1764550148183,0.35011887,87549.0,87548.0,0.25832221]
[1764550148387,0.35011887,87549.0,87548.0,0.3208452]
[1764550148587,0.07827388,87604.0,87591.0,0.01141669]
[1764550148588,0.04949,87602.0,87591.0,0.01141669]
[1764550148884,0.35011889,87602.0,87601.0,0.10120376]
[1764550149096,0.35011889,87602.0,87601.0,0.1161915]
[1764550149490,0.38011889,87602.0,87601.0,2.5229625]
[1764550149820,0.04949,87649.0,87631.0,0.01141148]
[1764550149987,0.13059631,87640.0,87638.0,0.22821014]
[1764550150446,0.13059631,87640.0,87639.0,0.07341136]
[1764550150897,0.13059631,87640.0,87639.0,0.47341136]
[1764550151332,0.13059631,87640.0,87639.0,2.59473175]
[1764550151656,0.13059631,87640.0,87639.0,1.95587912]
[1764550151878,0.13059631,87640.0,87639.0,0.50120376]
[1764550152089,0.13059631,87640.0,87639.0,0.10120376]
[1764550152508,0.13059631,87640.0,87639.0,0.11209213]
[1764550152923,0.13459631,87640.0,87639.0,0.10120376]
[1764550153093,0.13159631,87640.0,87639.0,0.10120376]
[1764550153299,0.13059631,87640.0,87638.0,0.10120376]
[1764550153685,0.13059631,87640.0,87639.0,0.001]
[1764550154068,0.13059631,87640.0,87639.0,0.005]
[1764550154268,0.13059631,87640.0,87639.0,0.001]
[1764550154713,0.13059631,87640.0,87638.0,0.10520376]
[1764550154914,0.13059631,87640.0,87639.0,0.2282089]
[1764550155220,0.13059631,87640.0,87638.0,0.10520376]
[1764550155221,0.3588044,87640.0,87638.0,0.005]
[1764550155365,0.09666,87639.0,87638.0,0.005]
[1764550155570,0.09666,87639.0,87638.0,0.004]
[1764550155571,0.13,87639.0,87638.0,0.004]
[1764550155880,0.0114107,87637.0,87631.0,0.01498774]
[1764550156074,0.1414107,87637.0,87636.0,0.10120376]
[1764550156304,0.1414107,87637.0,87631.0,0.01498774]
[1764550156305,0.01141109,87634.0,87631.0,0.01498774]
[1764550156643,0.3696351,87634.0,87631.0,0.01498774]
[1764550156846,0.01141122,87633.0,87631.0,0.02620437]
[1764550156981,0.22822713,87632.0,87631.0,0.02620437]
[1764550157187,0.13,87632.0,87631.0,0.02620437]
[1764550157388,0.13,87632.0,87573.0,0.34256765]
[1764550157389,0.01141344,87616.0,87573.0,0.34256765]
[1764550157590,0.01141344,87616.0,87560.0,0.57116785]
[1764550157591,0.01141487,87605.0,87601.0,0.12740813]
[1764550157852,0.13,87605.0,87601.0,0.12740813]
[1764550158068,0.13,87605.0,87601.0,0.13882352]
[1764550158292,0.13,87605.0,87603.0,0.22830268]
[1764550158468,0.13,87605.0,87604.0,0.01088837]
[1764550158629,0.13,87605.0,87601.0,0.12740813]
[1764550159024,0.13,87605.0,87601.0,0.12840813]
[1764550159025,0.23971672,87604.0,87601.0,0.12840813]
[1764550159221,0.46272672,87604.0,87601.0,0.02720437]
[1764550159422,0.22830528,87602.0,87601.0,0.02620437]
[1764550159638,0.35830528,87602.0,87601.0,0.02620437]
[1764550159840,0.45131528,87602.0,87601.0,0.02620437]
[1764550160040,0.35830528,87602.0,87601.0,0.02620437]
[1764550160255,0.13,87602.0,87601.0,0.02820437]
[1764550160457,0.13,87602.0,87601.0,0.02620437]
[1764550161233,0.14141526,87602.0,87597.0,0.01141591]
[1764550161435,0.13,87602.0,87599.0,0.01141565]
[1764550161657,0.13,87602.0,87580.0,0.57852785]
[1764550161658,0.22832092,87596.0,87580.0,0.57852785]
[1764550161932,0.23974345,87594.0,87592.0,0.10120376]
[1764550162097,0.13,87594.0,87593.0,0.01141643]
[1764550162441,0.13,87594.0,87593.0,0.10766066]
[1764550163493,0.13,87594.0,87593.0,0.11066066]
[1764550163665,0.13,87594.0,87593.0,0.08782779]
[1764550163867,0.13,87594.0,87592.0,0.10220376]
[1764550164230,0.22535,87594.0,87592.0,0.001]
[1764550164365,0.32367874,87593.0,87592.0,0.001]
[1764550164578,0.22834699,87586.0,87585.0,0.00011889]
[1764550164778,0.35834699,87586.0,87585.0,0.00011889]
[1764550165186,0.45369699,87586.0,87585.0,0.00011889]
[1764550165433,0.13,87586.0,87585.0,0.00011889]
[1764550165881,0.13,87586.0,87585.0,0.00111889]
[1764550166513,0.13,87586.0,87585.0,0.00211889]
[1764550166717,0.13,87586.0,87585.0,0.00111889]
[1764550166913,0.13,87586.0,87585.0,0.00311889]
[1764550168970,0.22535,87586.0,87585.0,0.00311889]
[1764550169172,0.22535,87586.0,87585.0,0.00111889]
[1764550169173,0.23624203,87586.0,87585.0,0.00111889]
[1764550169378,0.23624203,87586.0,87585.0,0.00011889]
[1764550169548,0.23624203,87586.0,87585.0,0.00111889]
[1764550169745,0.23624203,87586.0,87585.0,0.00011889]
[1764550170164,0.23624203,87586.0,87585.0,0.00111889]
[1764550172142,0.22535,87586.0,87585.0,0.00111889]
[1764550172344,0.23624203,87586.0,87585.0,0.00111889]
[1764550173511,0.22535,87586.0,87585.0,0.00111889]
[1764550173735,0.29167,87586.0,87585.0,0.00111889]
[1764550174099,0.29903,87586.0,87559.0,0.02620437]
[1764550174275,0.29903,87586.0,87525.0,0.00116]
[1764550174276,0.01142074,87560.0,87558.0,0.02620437]
[1764550174480,0.14142074,87560.0,87558.0,0.02620437]
[1764550174706,0.16167,87559.0,87558.0,0.02620437]
[1764550174881,0.29167,87559.0,87558.0,0.02620437]
[1764550175510,0.19632,87559.0,87558.0,0.02620437]
[1764550175763,0.19632,87559.0,87558.0,0.02720437]
[1764550175925,0.30256203,87559.0,87558.0,0.02720437]
[1764550176334,0.30256203,87559.0,87558.0,0.001]
[1764550176685,0.2284461,87548.0,87547.0,0.02620437]
[1764550176890,0.43565813,87548.0,87547.0,0.02620437]
[1764550177096,0.13,87548.0,87547.0,0.02620437]
[1764550177627,0.30256203,87548.0,87547.0,0.02620437]
[1764550179624,0.30656203,87548.0,87547.0,0.02620437]
[1764550179850,0.30256203,87548.0,87547.0,0.02620437]
[1764550181258,0.22848264,87534.0,87533.0,0.02620437]
[1764550181505,0.13,87534.0,87533.0,0.127527]
[1764550181827,0.13,87534.0,87533.0,0.10132263]
[1764550182026,0.29167,87534.0,87533.0,0.00011887]
[1764550182443,0.29267,87534.0,87533.0,0.00011887]
[1764550182645,0.29167,87534.0,87533.0,0.00011887]
[1764550183072,0.29167,87534.0,87533.0,0.00111887]
[1764550183943,0.30256203,87534.0,87533.0,0.00111887]
[1764550184165,0.30256203,87534.0,87533.0,0.00011887]
[1764550184623,0.30356203,87534.0,87533.0,0.00011887]
[1764550184789,0.30256203,87534.0,87533.0,0.00011887]
[1764550185034,0.30556203,87534.0,87533.0,0.00011887]
[1764550185624,0.62856203,87534.0,87533.0,0.00011887]
[1764550190106,0.62827049,87534.0,87533.0,0.00011887]
[1764550190500,0.61737846,87534.0,87533.0,0.00011887]
[1764550190690,0.62827049,87534.0,87533.0,0.00011887]
[1764550191740,0.65132042,87534.0,87533.0,0.00011887]
[1764550192872,0.65132042,87534.0,87511.0,0.00024991]
[1764550192873,0.23943211,87512.0,87511.0,0.00024991]
[1764550193081,0.56575057,87512.0,87511.0,0.00064524]
[1764550193211,0.55485854,87512.0,87511.0,0.00064524]
[1764550193429,0.56575057,87512.0,87511.0,0.00064524]
[1764550193633,0.56575057,87512.0,87510.0,4.274e-05]
[1764550193840,0.56575057,87512.0,87501.0,0.011707]
[1764550193841,0.2285662,87502.0,87501.0,0.011707]
[1764550194069,0.12970846,87502.0,87501.0,0.11291076]
[1764550194260,0.12970846,87502.0,87501.0,0.11322319]
[1764550194691,0.12970846,87502.0,87501.0,0.11606319]
[1764550194898,0.12863926,87502.0,87501.0,0.19231455]
[1764550195102,0.12295429,87502.0,87501.0,2.68291555]
[1764550195347,0.12295429,87502.0,87501.0,5.51531455]
[1764550195800,0.12295429,87502.0,87501.0,5.01088155]
[1764550196052,0.12295429,87502.0,87501.0,3.19424555]
[1764550196257,0.00039572,87512.0,87511.0,0.41958968]
[1764550196467,0.12039572,87512.0,87511.0,0.31727005]
[1764550196690,0.12039572,87512.0,87511.0,0.02620437]
[1764550196869,0.12039572,87512.0,87503.0,0.00024994]
[1764550196870,0.01142739,87509.0,87503.0,0.00024994]
[1764550197068,0.01142752,87508.0,87504.0,0.01142804]
[1764550197288,0.13142752,87508.0,87504.0,0.01142804]
[1764550197455,0.12,87508.0,87505.0,0.23998627]
[1764550197867,0.12,87508.0,87507.0,0.23944151]
[1764550198381,0.12,87508.0,87507.0,0.22855314]
[1764550198594,0.12,87508.0,87505.0,0.01142791]
[1764550198794,0.01142765,87507.0,87503.0,0.00024994]
[1764550199104,0.12,87507.0,87503.0,0.00024994]
[1764550199307,0.12,87507.0,87504.0,0.23998902]
[1764550199509,0.12,87507.0,87503.0,0.22880895]
[1764550199510,0.23998353,87506.0,87503.0,0.00024994]
[1764550199680,0.06114,87504.0,87503.0,0.00024994]
[1764550199865,0.18114,87504.0,87503.0,0.00024994]
[1764550200066,0.28220203,87504.0,87503.0,0.00024994]
[1764550200272,0.30539517,87504.0,87503.0,0.00024994]
[1764550200453,0.30539517,87504.0,87500.0,11.964]
[1764550200454,0.23946084,87501.0,87500.0,11.964]
[1764550200659,0.43290195,87501.0,87500.0,11.964]
[1764550200889,0.53397535,87501.0,87500.0,11.964]
[1764550201093,0.14320451,87501.0,87500.0,11.964]
[1764550201316,0.12,87501.0,87500.0,11.964]
[1764550201519,0.01182272,87512.0,87504.0,0.01142804]